bitfinex-derivatives/quotes_SOLF0:USTF0_20260117
["timestamp","ask_amount","ask_price","bid_price","bid_amount"]
[1768648700534,5.0,143.98,143.94,266.6352]
[1768648700834,5.0,143.98,143.94,276.75129566]
[1768648702833,46.30808134,144.0,143.94,276.75129566]
[1768648705634,30.25883347,143.98,143.92,16.45351485]
[1768648705938,30.25883347,143.98,143.93,260.36]
[1768648707841,28.52687458,143.98,143.93,260.36]
[1768648708034,30.25883347,143.98,143.93,260.36]
[1768648710841,28.52687458,143.98,143.93,260.36]
[1768648711142,30.25883347,143.98,143.93,260.36]
[1768648717450,28.52687458,143.98,143.93,260.36]
[1768648718743,28.52687458,143.98,143.89,1.73060372]
[1768648718744,5.47127195,143.97,143.94,246.45161485]
[1768648719049,34.78057458,143.98,143.94,246.45161485]
[1768648719247,5.47145017,143.97,143.94,246.45161485]
[1768648719448,34.78057458,143.98,143.94,246.45161485]
[1768648719650,5.47197659,143.97,143.94,246.45161485]
[1768648719842,36.5111783,143.98,143.94,246.45161485]
[1768648720040,5.47197659,143.97,143.94,246.45161485]
[1768648720244,5.47266835,143.96,143.94,246.45161485]
[1768648720550,36.5111783,143.98,143.94,246.45161485]
[1768648720746,5.47266835,143.97,143.94,246.45161485]
[1768648720943,5.47266835,143.96,143.94,246.45161485]
[1768648721148,36.5111783,143.98,143.94,246.45161485]
[1768648721454,5.47358021,143.97,143.94,246.45161485]
[1768648721653,5.47358021,143.96,143.94,246.45161485]
[1768648721854,36.5111783,143.98,143.94,246.45161485]
[1768648722049,5.47358021,143.97,143.94,246.45161485]
[1768648722250,5.47358021,143.96,143.94,246.45161485]
[1768648722454,36.5111783,143.98,143.94,246.45161485]
[1768648722752,5.47464515,143.97,143.94,246.45161485]
[1768648723055,5.47464515,143.96,143.94,246.45161485]
[1768648723250,36.5111783,143.98,143.94,246.45161485]
[1768648723451,5.47576303,143.97,143.94,246.45161485]
[1768648723646,5.47576303,143.96,143.94,246.45161485]
[1768648723846,36.5111783,143.98,143.94,246.45161485]
[1768648724150,5.47576303,143.97,143.94,246.45161485]
[1768648724453,5.47576303,143.96,143.94,246.45161485]
[1768648724654,36.5111783,143.98,143.94,246.45161485]
[1768648724856,5.47701986,143.97,143.94,246.45161485]
[1768648725150,26.00923057,143.94,143.85,0.49318944]
[1768648725359,5.47559245,143.93,143.86,0.49318944]
[1768648725552,26.00923057,143.94,143.86,0.49318944]
[1768648725753,5.47584653,143.93,143.86,0.49318944]
[1768648726053,32.26473057,143.94,143.86,0.49318944]
[1768648726253,5.47489137,143.93,143.86,0.49318944]
[1768648726446,32.26473057,143.94,143.86,0.49318944]
[1768648726646,5.47499502,143.93,143.86,0.49318944]
[1768648726849,32.26473057,143.94,143.86,0.49318944]
[1768648727050,5.47503253,143.93,143.86,0.49318944]
[1768648727250,32.26473057,143.94,143.86,0.49318944]
[1768648727451,5.47407819,143.93,143.86,0.49318944]
[1768648727652,32.26473057,143.94,143.86,0.49318944]
[1768648727946,5.4741386,143.93,143.86,0.49318944]
[1768648728148,32.26473057,143.94,143.86,0.49318944]
[1768648728355,5.47339498,143.93,143.86,0.49318944]
[1768648728556,32.26473057,143.94,143.86,0.49318944]
[1768648728756,5.47339498,143.93,143.86,0.49318944]
[1768648728953,32.26473057,143.94,143.86,0.49318944]
[1768648729255,5.47339498,143.93,143.86,0.49318944]
[1768648729447,32.26473057,143.94,143.86,0.49318944]
[1768648729643,5.47273032,143.93,143.86,0.49318944]
[1768648729853,32.26473057,143.94,143.86,0.49318944]
[1768648730057,5.47272786,143.93,143.86,0.49318944]
[1768648730256,32.26473057,143.94,143.86,0.49318944]
[1768648731157,26.00923057,143.94,143.88,0.64784419]
[1768648733146,33.38293871,143.96,143.88,0.64784419]
[1768648733354,32.5986759,143.95,143.88,0.64784419]
[1768648733659,5.47043719,143.94,143.88,0.64784419]
[1768648733960,27.12823871,143.95,143.88,0.64784419]
[1768648734146,5.47042009,143.94,143.88,0.64784419]
[1768648734352,27.12823871,143.95,143.88,0.64784419]
[1768648734556,5.46992355,143.94,143.88,0.64784419]
[1768648734757,27.12823871,143.95,143.88,0.64784419]
[1768648735060,5.46991106,143.94,143.88,0.64784419]
[1768648735354,27.12823871,143.95,143.88,0.64784419]
[1768648735559,5.46953155,143.94,143.88,0.64784419]
[1768648735759,27.12823871,143.95,143.88,0.64784419]
[1768648735962,5.46953155,143.94,143.88,0.64784419]
[1768648736150,27.12823871,143.95,143.88,0.64784419]
[1768648736349,5.46798969,143.94,143.88,0.64784419]
[1768648736661,27.12823871,143.95,143.88,0.64784419]
[1768648736862,5.46798969,143.94,143.88,0.64784419]
[1768648737058,27.12823871,143.95,143.88,0.64784419]
[1768648737259,5.46752645,143.94,143.88,0.64784419]
[1768648737561,27.12823871,143.95,143.88,0.64784419]
[1768648737762,5.46752645,143.94,143.88,0.64784419]
[1768648737963,27.12823871,143.95,143.88,0.64784419]
[1768648738263,5.46752645,143.94,143.88,0.64784419]
[1768648738464,27.12823871,143.95,143.88,0.64784419]
[1768648738656,5.46708697,143.94,143.88,0.64784419]
[1768648738856,27.12823871,143.95,143.88,0.64784419]
[1768648739052,5.46708697,143.94,143.88,0.64784419]
[1768648739256,27.12823871,143.95,143.88,0.64784419]
[1768648739458,5.46666986,143.94,143.88,0.64784419]
[1768648739658,27.12823871,143.95,143.88,0.64784419]
[1768648739859,5.46666986,143.94,143.88,0.64784419]
[1768648740064,27.12823871,143.95,143.88,0.64784419]
[1768648740263,5.4664141,143.94,143.88,0.64784419]
[1768648740465,27.12823871,143.95,143.88,0.64784419]
[1768648740662,5.46641407,143.94,143.88,0.64784419]
[1768648740862,27.12823871,143.95,143.88,0.64784419]
[1768648741162,5.46641407,143.94,143.88,0.64784419]
[1768648741360,27.12823871,143.95,143.88,0.64784419]
[1768648741557,32.59415182,143.94,143.88,0.64784419]
[1768648741753,27.12823871,143.94,143.88,0.64784419]
[1768648753976,27.12823871,143.94,143.86,2.90223198]
[1768648754877,27.12823871,143.94,143.87,1.19031949]
[1768648758080,5.47176533,143.93,143.87,1.19031949]
[1768648758378,27.12823871,143.93,143.87,1.19031949]
[1768648760580,28.85884243,143.93,143.85,1.28049321]
[1768648762181,29.23971407,143.91,143.85,1.28049321]
[1768648763080,29.23971407,143.91,143.83,67.43060372]
[1768648763382,29.23971407,143.91,143.84,1.36880699]
[1768648770085,29.23971407,143.91,143.86,1.48084527]
[1768648778399,29.23971407,143.91,143.85,1.73060372]
[1768648779401,29.23971407,143.91,143.85,1.73168897]
[1768648780404,29.23971407,143.91,143.85,3.37500326]
[1768648782298,28.52844365,143.94,143.86,1.67030924]
[1768648782596,28.52844365,143.93,143.87,3.40199821]
[1768648792014,28.52844365,143.93,143.88,1.80397286]
[1768648792920,28.52844365,143.93,143.87,3.54719662]
[1768648794905,28.52844365,143.93,143.87,1.81550765]
[1768648802719,28.52844365,143.93,143.86,1.73168897]
[1768648803019,28.52844365,143.93,143.85,72.63307417]
[1768648806120,28.52844365,143.93,143.86,1.95351205]
[1768648817321,28.52844365,143.93,143.85,72.45168897]
[1768648817929,30.26013262,143.93,143.85,72.45168897]
[1768648818225,30.26013262,143.93,143.85,70.72]
[1768648821030,28.52844365,143.93,143.85,70.72]
[1768648821230,30.26013262,143.93,143.85,70.72]
[1768648824636,30.26013262,143.93,143.85,72.85164539]
[1768648830938,28.52844365,143.93,143.85,72.85164539]
[1768648833644,28.52844365,143.93,143.85,74.58333436]
[1768648835345,28.52844365,143.93,143.85,32.88099973]
[1768648841453,28.52844365,143.93,143.85,32.88081002]
[1768648843857,28.52844365,143.93,143.85,31.14931076]
[1768648848255,5.49778902,143.92,143.85,31.14931076]
[1768648848454,29.53475537,143.92,143.85,31.14931076]
[1768648854957,1.73149926,143.91,143.85,31.14931076]
[1768648861067,1.73149926,143.91,143.85,2.13164539]
[1768648864170,29.38097054,143.91,143.85,2.13164539]
[1768648876881,27.64947128,143.91,143.85,2.13164539]
[1768648897797,27.64947128,143.91,143.86,1.73149926]
[1768648901302,27.64947128,143.91,143.86,1.73129287]
[1768648920221,6.476544,143.97,143.88,1.73129287]
[1768648920421,5.49623841,143.96,143.88,1.73129287]
[1768648920611,5.49623841,143.95,143.88,1.73129287]
[1768648920812,8.20783687,143.98,143.88,1.73129287]
[1768648921015,5.49652494,143.97,143.88,1.73129287]
[1768648921325,5.49652494,143.96,143.88,222.45129287]
[1768648921622,5.49652494,143.95,143.88,222.45129287]
[1768648921822,8.20783687,143.98,143.88,222.45129287]
[1768648922125,29.19566723,143.96,143.88,222.45129287]
[1768648922421,29.19566723,143.94,143.88,222.45129287]
[1768648922621,29.19566723,143.94,143.88,220.72]
[1768648922824,29.19566723,143.94,143.88,222.45129287]
[1768648925717,29.19566723,143.94,143.88,250.84302666]
[1768648927115,29.19566723,143.94,143.89,28.39173379]
[1768648927312,29.19566723,143.97,143.89,28.39173379]
[1768648927514,34.6860707,143.96,143.9,1.73129287]
[1768648927715,29.19566723,143.96,143.9,1.73129287]
[1768648932624,29.19566723,143.96,143.9,30.12302666]
[1768648938532,29.19566723,143.99,143.9,30.12302666]
[1768648938729,34.68015282,143.98,143.9,30.12302666]
[1768648938927,29.19566723,143.98,143.9,30.12302666]
[1768648961447,29.19566723,143.98,143.9,30.1218064]
[1768648975847,29.19566723,143.98,143.9,28.39173379]
[1768648976244,29.11413019,143.96,143.9,28.39173379]
[1768648981457,29.11413019,143.96,143.91,260.56]
[1768648982560,29.11413019,143.96,143.9,28.39173379]
[1768648982752,29.11413019,143.96,143.91,260.58]
[1768648989578,29.11413019,143.99,143.92,29.22374839]
[1768648989868,5.49510031,143.98,143.92,29.22374839]
[1768648990066,29.11413019,143.99,143.92,29.22374839]
[1768648990262,5.4954268,143.98,143.92,29.22374839]
[1768648990467,29.11413019,143.99,143.92,29.22374839]
[1768648992969,29.11413019,143.99,143.92,30.953821]
[1768648993169,29.11413019,143.99,143.92,29.22374839]
[1768648993368,29.11413019,143.99,143.92,30.953821]
[1768648993972,16.87560704,144.0,143.94,1.73007261]
[1768648994177,16.87560704,144.0,143.94,30.953821]
[1768648995079,45.98973723,144.0,143.94,30.953821]
[1768648996480,45.98973723,144.0,143.94,29.22374839]
[1768649001383,47.71980984,144.0,143.94,29.22374839]
[1768649023407,47.71949279,144.0,143.94,29.22374839]
[1768649026212,45.98973723,144.0,143.94,29.22374839]
[1768649026419,47.71949279,144.0,143.94,29.22374839]
[1768649027414,45.98973723,144.0,143.94,29.22374839]
[1768649027615,47.71949279,144.0,143.94,29.22374839]
[1768649028212,16.87560704,144.0,143.94,29.22374839]
[1768649028417,49.75475559,144.0,143.94,29.22374839]
[1768649030918,49.75475559,144.0,143.97,6.254]
[1768649041232,48.02500003,144.0,143.97,6.254]
[1768649049137,6.48332242,144.07,143.98,6.2535]
[1768649049344,1.72975556,144.03,143.98,6.2535]
[1768649051347,31.03502522,144.02,143.98,6.2535]
[1768649052346,32.76478078,144.04,143.98,6.2535]
[1768649054151,32.76478078,144.04,143.97,29.41648021]
[1768649057555,31.03502522,144.04,143.97,29.41648021]
[1768649062058,31.03502522,144.04,143.97,31.14623577]
[1768649065359,30.96227355,144.07,143.97,31.14623577]
[1768649065566,32.69202911,144.07,143.97,31.14623577]
[1768649067064,30.96227355,144.07,143.97,31.14623577]
[1768649067272,30.96227355,144.05,143.97,31.14623577]
[1768649072871,30.96227355,144.05,144.01,6.2522]
[1768649073071,30.96227355,144.05,144.02,260.56]
[1768649081789,31.56621256,144.08,144.02,266.8118]
[1768649090392,31.56621256,144.08,144.02,296.61343924]
[1768649090697,31.56621256,144.08,144.02,290.36163924]
[1768649095588,31.44514754,144.1,144.03,29.42067016]
[1768649097999,31.44514754,144.1,144.04,6.251]
[1768649098300,31.44514754,144.1,144.04,35.67167016]
[1768649100102,31.44514754,144.1,144.04,37.3995474]
[1768649100301,31.44514754,144.13,144.06,1.72787724]
[1768649100598,36.84293673,144.12,144.07,260.54]
[1768649100800,5.39778919,144.11,144.07,260.54]
[1768649101293,36.84293673,144.11,144.08,260.54]
[1768649101495,31.44514754,144.11,144.08,260.54]
[1768649101900,31.44514754,144.11,144.05,6.2504]
[1768649102102,31.44514754,144.11,144.06,260.54]
[1768649106006,31.44514754,144.11,144.07,260.52]
[1768649109712,31.44514754,144.11,144.04,35.67157016]
[1768649110011,31.44514754,144.11,144.05,260.52]
[1768649111808,31.44514754,144.11,144.05,289.94067016]
[1768649112100,31.44514754,144.11,144.06,29.42067016]
[1768649113408,31.44514754,144.11,144.06,31.1485474]
[1768649118711,31.44514754,144.14,144.06,31.1485474]
[1768649119016,36.83907344,144.13,144.06,31.1485474]
[1768649119208,5.3939259,144.12,144.06,31.1485474]
[1768649119407,31.44514754,144.13,144.06,31.1485474]
[1768649120010,31.44514754,144.13,144.07,29.42067016]
[1768649124612,35.82127859,144.15,144.07,29.42067016]
[1768649124916,34.96687042,144.14,144.07,29.42067016]
[1768649125124,5.39219183,144.13,144.07,29.42067016]
[1768649128416,5.39219183,144.13,144.07,35.67017016]
[1768649128612,29.57467859,144.14,144.07,35.67017016]
[1768649129013,35.82147859,144.14,144.07,29.42067016]
[1768649129213,5.3886877,144.13,144.07,29.42067016]
[1768649129417,35.82147859,144.14,144.07,29.42067016]
[1768649129622,5.38876896,144.13,144.07,29.42067016]
[1768649129820,35.82147859,144.14,144.07,29.42067016]
[1768649130020,5.38876896,144.13,144.07,29.42067016]
[1768649130216,35.82147859,144.14,144.07,29.42067016]
[1768649130420,5.38874713,144.13,144.07,29.42067016]
[1768649130715,35.82147859,144.14,144.07,29.42067016]
[1768649130917,5.38874708,144.13,144.07,29.42067016]
[1768649131115,35.82147859,144.14,144.07,29.42067016]
[1768649131322,5.38890805,144.13,144.07,29.42067016]
[1768649131510,35.82147859,144.14,144.07,29.42067016]
[1768649131710,5.38961887,144.13,144.07,29.42067016]
[1768649131917,35.82147859,144.14,144.07,29.42067016]
[1768649132121,5.3892635,144.13,144.07,29.42067016]
[1768649132322,35.82147859,144.14,144.07,29.42067016]
[1768649132624,5.38944412,144.13,144.07,29.42067016]
[1768649132823,35.82147859,144.14,144.07,29.42067016]
[1768649133023,5.38944412,144.13,144.07,29.42067016]
[1768649133321,35.82147859,144.14,144.07,29.42067016]
[1768649133518,6.2457,144.17,144.09,32.15942066]
[1768649133716,35.87135328,144.16,144.1,260.5]
[1768649134022,35.87135328,144.15,144.1,260.5]
[1768649134220,30.48151279,144.15,144.1,260.5]
[1768649144331,30.48151279,144.15,144.1,292.65942066]
[1768649146632,32.20759753,144.17,144.11,32.15942066]
[1768649146835,5.38900441,144.16,144.11,32.15942066]
[1768649147034,32.20759753,144.17,144.11,32.15942066]
[1768649147035,5.38900441,144.15,144.11,32.15942066]
[1768649147236,32.20759753,144.17,144.11,32.15942066]
[1768649147434,5.38894352,144.16,144.11,32.15942066]
[1768649147735,5.38894352,144.15,144.11,32.15942066]
[1768649148035,30.48151279,144.17,144.11,32.15942066]
[1768649148236,30.48151279,144.17,144.11,38.40732066]
[1768649149341,32.20759753,144.19,144.11,38.40732066]
[1768649149539,5.38836415,144.18,144.11,38.40732066]
[1768649149832,32.20759753,144.19,144.11,38.40732066]
[1768649149833,5.38836415,144.17,144.11,38.40732066]
[1768649150039,32.20759753,144.19,144.11,38.40732066]
[1768649150339,5.38836128,144.18,144.11,38.40732066]
[1768649150534,5.38836128,144.17,144.11,38.40732066]
[1768649150735,30.48151279,144.18,144.11,38.40732066]
[1768649151034,5.38791156,144.17,144.11,38.40732066]
[1768649151339,30.48151279,144.18,144.11,38.40732066]
[1768649151536,5.38756873,144.17,144.11,38.40732066]
[1768649151741,30.48151279,144.18,144.11,38.40732066]
[1768649152040,5.38756873,144.17,144.11,38.40732066]
[1768649152338,30.48151279,144.18,144.11,38.40732066]
[1768649152539,5.38732714,144.17,144.11,38.40732066]
[1768649152730,30.48151279,144.18,144.11,38.40732066]
[1768649152933,5.38732716,144.17,144.11,38.40732066]
[1768649153141,30.48151279,144.18,144.11,38.40732066]
[1768649153337,5.38718305,144.17,144.11,38.40732066]
[1768649153538,30.48151279,144.18,144.11,38.40732066]
[1768649153740,5.38718305,144.17,144.11,38.40732066]
[1768649153939,30.48151279,144.18,144.11,38.40732066]
[1768649154138,5.38718305,144.17,144.11,38.40732066]
[1768649154338,30.48151279,144.18,144.11,38.40732066]
[1768649154541,5.38713428,144.17,144.11,38.40732066]
[1768649154739,30.48151279,144.18,144.11,38.40732066]
[1768649154944,5.38713547,144.17,144.11,38.40732066]
[1768649155245,30.48151279,144.18,144.11,38.40732066]
[1768649160740,30.48151279,144.18,144.12,6.2475]
[1768649160939,6.2446,144.19,144.13,32.85183196]
[1768649161144,38.21731944,144.19,144.14,260.46]
[1768649161950,43.5512792,144.18,144.14,260.46]
[1768649162141,38.21781944,144.18,144.14,260.46]
[1768649169655,31.97271944,144.18,144.1,32.85183196]
[1768649169859,31.97271944,144.16,144.11,181.9]
[1768649170754,38.21861944,144.16,144.11,181.9]
[1768649171355,6.2464,144.15,144.11,181.9]
[1768649171660,38.21911944,144.15,144.11,181.9]
[1768649174462,39.94520418,144.15,144.08,32.85183196]
[1768649174654,39.94520418,144.15,144.09,260.48]
[1768649175251,39.94520418,144.15,144.09,293.33183196]
[1768649176164,38.22001944,144.13,144.09,246.30436226]
[1768649176666,39.94610418,144.13,144.09,246.30436226]
[1768649179165,39.94610418,144.13,144.09,221.31606226]
[1768649179465,39.94610418,144.13,144.09,173.71956226]
[1768649179657,39.94610418,144.13,144.09,140.81076226]
[1768649179858,39.94610418,144.13,144.09,119.13616226]
[1768649187470,38.22001944,144.13,144.09,119.13616226]
[1768649187664,39.94610418,144.13,144.09,119.13616226]
[1768649189866,6.2473,144.13,144.09,150.29278933]
[1768649190073,40.94639889,144.15,144.09,150.29278933]
[1768649190370,5.32622248,144.14,144.09,150.29278933]
[1768649190570,6.2467,144.14,144.09,150.29278933]
[1768649197781,6.2461,144.16,144.1,32.08014047]
[1768649208395,5.33034031,144.15,144.1,32.08014047]
[1768649208693,6.2461,144.16,144.1,32.08014047]
[1768649208895,5.33014431,144.15,144.1,32.08014047]
[1768649209085,6.2461,144.16,144.1,32.08014047]
[1768649209285,5.32924617,144.15,144.1,32.08014047]
[1768649209493,6.2461,144.16,144.1,32.08014047]
[1768649209694,5.33011392,144.15,144.1,32.08014047]
[1768649209996,6.2461,144.16,144.1,32.08014047]
[1768649210194,5.32999894,144.15,144.1,32.08014047]
[1768649210394,6.2461,144.16,144.1,32.08014047]
[1768649210591,5.33105376,144.15,144.1,32.08014047]
[1768649210793,6.2461,144.16,144.1,32.08014047]
[1768649211095,5.33103651,144.15,144.1,32.08014047]
[1768649211297,6.2461,144.16,144.1,32.08014047]
[1768649211494,6.2453,144.18,144.1,40.05463779]
[1768649211796,5.33298368,144.17,144.1,40.05463779]
[1768649211998,6.2453,144.18,144.1,40.05463779]
[1768649212193,5.33313741,144.17,144.1,40.05463779]
[1768649212393,6.2453,144.18,144.1,40.05463779]
[1768649212593,5.3338435,144.17,144.1,40.05463779]
[1768649212896,5.33374805,144.16,144.1,40.05463779]
[1768649213098,6.2453,144.18,144.1,40.05463779]
[1768649213300,5.33365064,144.17,144.1,40.05463779]
[1768649213598,5.33365064,144.16,144.1,40.05463779]
[1768649213800,6.2453,144.18,144.1,40.05463779]
[1768649214105,5.33458746,144.17,144.1,40.05463779]
[1768649214298,5.33458746,144.16,144.1,40.05463779]
[1768649214499,6.2453,144.18,144.1,40.05463779]
[1768649214695,5.33558547,144.17,144.1,40.05463779]
[1768649214894,5.33558547,144.16,144.1,40.05463779]
[1768649215096,6.2453,144.18,144.1,40.05463779]
[1768649215293,5.33558547,144.17,144.1,40.05463779]
[1768649215595,5.33558547,144.16,144.1,40.05463779]
[1768649215799,6.2453,144.18,144.1,40.05463779]
[1768649215999,5.3345179,144.17,144.1,40.05463779]
[1768649216297,5.3345179,144.16,144.1,40.05463779]
[1768649216499,6.2453,144.18,144.1,40.05463779]
[1768649216692,11.57961385,144.17,144.1,40.05463779]
[1768649216899,5.33421385,144.16,144.11,31.5336413]
[1768649217195,5.33367787,144.15,144.11,31.5336413]
[1768649217385,36.68743364,144.18,144.11,31.5336413]
[1768649217590,35.53739277,144.17,144.11,31.5336413]
[1768649217789,11.57946485,144.16,144.11,31.5336413]
[1768649217985,5.33356485,144.15,144.11,31.5336413]
[1768649218190,6.2459,144.16,144.11,31.5336413]
[1768649218387,5.33364849,144.15,144.11,31.5336413]
[1768649218601,6.2459,144.16,144.11,31.5336413]
[1768649218895,5.33385978,144.15,144.11,31.5336413]
[1768649219197,6.2459,144.16,144.11,31.5336413]
[1768649219398,11.58009523,144.15,144.11,31.5336413]
[1768649219600,6.2463,144.15,144.11,31.5336413]
[1768649226510,5.3343469,144.14,144.09,31.5336413]
[1768649226806,36.45012792,144.15,144.09,31.5336413]
[1768649227107,5.33433267,144.14,144.09,31.5336413]
[1768649227310,38.17652524,144.15,144.09,31.5336413]
[1768649227509,5.33427976,144.14,144.09,31.5336413]
[1768649233009,7.97369732,144.13,144.05,6.2502]
[1768649233208,5.33427976,144.12,144.06,260.6]
[1768649233413,5.33427976,144.12,144.05,6.2502]
[1768649233613,35.53810768,144.12,144.06,260.6]
[1768649233809,35.53810768,144.12,144.03,6.2513]
[1768649233810,7.06115296,144.11,144.03,6.2513]
[1768649234013,1.72639732,144.11,144.03,6.2513]
[1768649234815,7.97449732,144.11,144.03,6.2513]
[1768649235015,7.97449732,144.11,144.04,24.79164045]
[1768649235513,6.2481,144.11,144.04,24.79164045]
[1768649235813,7.97449732,144.11,144.04,24.79164045]
[1768649236407,1.72639732,144.11,144.04,31.04254045]
[1768649236702,1.72639732,144.11,144.05,24.86836344]
[1768649239216,6.2474,144.13,144.05,31.11876344]
[1768649239517,7.97379732,144.13,144.06,25.09277283]
[1768649239906,1.72639732,144.11,144.06,25.09277283]
[1768649240816,31.93022524,144.11,144.06,25.09277283]
[1768649241016,38.17842524,144.11,144.06,25.09277283]
[1768649250421,30.20382792,144.11,144.06,25.09277283]
[1768649250629,1.72639732,144.11,144.06,25.09277283]
[1768649256928,6.2481,144.11,144.06,25.09277283]
[1768649257230,1.72639732,144.1,144.06,25.09277283]
[1768649258830,33.44563971,144.12,144.06,25.09277283]
[1768649260025,6.2473,144.13,144.06,31.34277283]
[1768649261334,5.32804019,144.12,144.06,31.34277283]
[1768649261536,6.2473,144.13,144.06,31.34277283]
[1768649261732,5.32804019,144.12,144.06,31.34277283]
[1768649261927,6.2473,144.13,144.06,31.34277283]
[1768649262123,5.32804019,144.12,144.06,31.34277283]
[1768649262323,6.2473,144.13,144.06,31.34277283]
[1768649262530,5.3286985,144.12,144.06,31.34277283]
[1768649262728,6.2473,144.13,144.06,31.34277283]
[1768649262933,5.3286985,144.12,144.06,31.34277283]
[1768649263134,6.2473,144.13,144.06,31.34277283]
[1768649263338,5.3286985,144.12,144.06,31.34277283]
[1768649263530,6.2473,144.13,144.06,31.34277283]
[1768649263727,5.32939896,144.12,144.06,31.34277283]
[1768649263934,6.2473,144.13,144.06,31.34277283]
[1768649264126,5.32939896,144.12,144.06,31.34277283]
[1768649264332,6.2473,144.13,144.06,31.34277283]
[1768649265939,33.44563971,144.14,144.06,31.34277283]
[1768649266144,5.3309878,144.13,144.06,31.34277283]
[1768649266437,33.44563971,144.14,144.06,31.34277283]
[1768649266636,5.33172223,144.13,144.06,31.34277283]
[1768649266833,33.44563971,144.14,144.06,31.34277283]
[1768649267033,5.33287881,144.13,144.06,31.34277283]
[1768649267234,33.44563971,144.14,144.06,31.34277283]
[1768649267434,5.33371855,144.13,144.06,31.34277283]
[1768649267634,33.44563971,144.14,144.06,31.34277283]
[1768649267835,5.33371855,144.13,144.06,31.34277283]
[1768649268032,33.44563971,144.14,144.06,31.34277283]
[1768649268233,5.33373581,144.13,144.06,31.34277283]
[1768649268435,33.44563971,144.14,144.06,31.34277283]
[1768649268636,5.33478696,144.13,144.06,31.34277283]
[1768649268837,33.44563971,144.14,144.06,31.34277283]
[1768649269142,5.33546349,144.13,144.06,31.34277283]
[1768649269335,1.72739159,144.13,144.06,31.34277283]
[1768649272240,5.33891627,144.12,144.06,31.34277283]
[1768649272436,1.72739159,144.13,144.06,31.34277283]
[1768649272635,5.33888391,144.12,144.06,31.34277283]
[1768649272836,1.72739159,144.13,144.06,31.34277283]
[1768649273038,5.33888393,144.12,144.07,33.37644386]
[1768649273237,1.72739159,144.13,144.07,33.37644386]
[1768649273436,5.33919247,144.12,144.07,33.37644386]
[1768649273640,1.72739159,144.13,144.07,33.37644386]
[1768649273943,5.33917824,144.12,144.07,33.37644386]
[1768649274145,1.72739159,144.13,144.07,33.37644386]
[1768649274443,5.33984821,144.12,144.07,33.37644386]
[1768649274642,1.72739159,144.13,144.07,33.37644386]
[1768649274845,5.34020669,144.12,144.07,33.37644386]
[1768649275142,1.72739159,144.13,144.07,33.37644386]
[1768649275341,5.34025754,144.12,144.07,33.37644386]
[1768649275543,1.72739159,144.13,144.07,33.37644386]
[1768649275844,5.34062893,144.12,144.07,33.37644386]
[1768649276035,1.72739159,144.13,144.07,33.37644386]
[1768649276231,5.34088181,144.12,144.07,33.37644386]
[1768649276432,33.44663398,144.14,144.07,33.37644386]
[1768649276639,5.33940905,144.13,144.07,33.37644386]
[1768649276840,5.33940905,144.12,144.07,33.37644386]
[1768649277033,33.44663398,144.14,144.07,33.37644386]
[1768649277343,5.33940905,144.13,144.07,33.37644386]
[1768649277641,5.33940905,144.12,144.07,33.37644386]
[1768649277842,33.44663398,144.14,144.07,33.37644386]
[1768649278044,5.33984195,144.13,144.07,33.37644386]
[1768649278244,5.33984195,144.12,144.07,33.37644386]
[1768649278546,33.44663398,144.14,144.07,33.37644386]
[1768649278740,5.34076251,144.13,144.07,33.37644386]
[1768649278939,33.44663398,144.14,144.07,33.37644386]
[1768649279137,5.34095701,144.13,144.07,33.37644386]
[1768649279338,33.44663398,144.14,144.07,33.37644386]
[1768649279538,5.34065621,144.13,144.07,33.37644386]
[1768649279739,33.44663398,144.14,144.07,33.37644386]
[1768649279934,5.34065621,144.13,144.07,33.37644386]
[1768649280137,33.44663398,144.14,144.07,33.37644386]
[1768649280333,5.34065621,144.13,144.07,33.37644386]
[1768649280537,33.44663398,144.14,144.07,33.37644386]
[1768649280733,5.3406952,144.13,144.07,33.37644386]
[1768649280940,33.44663398,144.14,144.07,33.37644386]
[1768649281140,5.3406952,144.13,144.07,33.37644386]
[1768649281338,33.44663398,144.14,144.07,33.37644386]
[1768649281542,5.34035877,144.13,144.07,33.37644386]
[1768649281843,1.72739159,144.14,144.07,33.37644386]
[1768649282042,5.34034944,144.13,144.07,33.37644386]
[1768649282242,1.72739159,144.14,144.07,33.37644386]
[1768649282444,5.33996599,144.13,144.07,33.37644386]
[1768649282645,1.72739159,144.14,144.07,33.37644386]
[1768649282844,5.33996718,144.13,144.07,33.37644386]
[1768649283047,1.72739159,144.14,144.07,33.37644386]
[1768649283246,5.33996718,144.13,144.07,33.37644386]
[1768649283542,1.72739159,144.14,144.07,33.37644386]
[1768649283746,5.33962053,144.13,144.07,33.37644386]
[1768649283945,1.72739159,144.14,144.07,33.37644386]
[1768649284145,5.33962053,144.13,144.07,33.37644386]
[1768649284350,1.72739159,144.14,144.07,33.37644386]
[1768649284649,5.33929698,144.13,144.07,33.37644386]
[1768649284846,1.72739159,144.14,144.07,33.37644386]
[1768649285045,5.33929698,144.13,144.07,33.37644386]
[1768649285244,1.72739159,144.14,144.07,33.37644386]
[1768649285445,5.3390019,144.13,144.07,33.37644386]